bitfinex/quotes_BTCUSD_20250709
["timestamp","ask_amount","ask_price","bid_price","bid_amount"]
[1752080604983,0.35752085,109410.0,109400.0,0.72256346]
[1752080605217,0.35454085,109410.0,109400.0,0.72256346]
[1752080606586,0.37579978,109410.0,109400.0,0.72224346]
[1752080606719,0.38462019,109410.0,109400.0,0.72224346]
[1752080606929,0.3937597,109410.0,109400.0,0.72224346]
[1752080607712,0.65251074,109410.0,109400.0,0.694823]
[1752080607914,0.40289946,109410.0,109400.0,0.71310361]
[1752080608219,0.41809946,109410.0,109400.0,0.71310361]
[1752080608430,0.39982019,109410.0,109400.0,0.71310361]
[1752080608714,0.3937597,109410.0,109400.0,0.71310361]
[1752080609119,0.38462019,109410.0,109400.0,0.71310361]
[1752080609323,0.3937597,109410.0,109400.0,0.71306361]
[1752080609473,0.38462019,109410.0,109400.0,0.71306361]
[1752080609679,0.38462019,109410.0,109400.0,0.57338361]
[1752080609863,0.38462019,109410.0,109400.0,0.71306361]
[1752080610064,0.37332085,109410.0,109400.0,0.71306361]
[1752080610261,0.36666019,109410.0,109400.0,0.71306361]
[1752080610462,0.37281946,109410.0,109400.0,0.71302361]
[1752080610647,0.38493905,109410.0,109400.0,0.57338361]
[1752080610852,0.37579946,109410.0,109400.0,0.71314361]
[1752080611048,0.38493897,109410.0,109400.0,0.71314361]
[1752080611258,0.41153865,109410.0,109400.0,0.71314361]
[1752080611470,0.40239897,109410.0,109400.0,0.71314361]
[1752080611950,0.41153865,109410.0,109400.0,0.71314361]
[1752080612114,0.68019744,109410.0,109400.0,0.33371611]
[1752080612293,0.60149852,109410.0,109400.0,0.34289679]
[1752080612503,0.59235901,109410.0,109400.0,0.33375611]
[1752080612906,0.59235901,109410.0,109400.0,0.35203739]
[1752080613107,0.59235901,109410.0,109400.0,0.33375611]
[1752080613286,0.59235901,109410.0,109400.0,0.34285679]
[1752080613915,0.58937901,109410.0,109400.0,0.34285679]
[1752080614115,0.59235901,109410.0,109400.0,0.34285679]
[1752080614702,0.59235901,109410.0,109400.0,0.3519973]
[1752080615303,0.59235901,109410.0,109400.0,0.34285679]
[1752080615624,0.58321933,109410.0,109400.0,0.33371611]
[1752080616023,0.58321933,109410.0,109400.0,0.34285679]
[1752080616237,0.58321933,109410.0,109400.0,0.35199739]
[1752080616437,0.58321933,109410.0,109400.0,0.3611379]
[1752080616617,0.58321933,109410.0,109400.0,0.34285679]
[1752080617017,0.58321933,109410.0,109400.0,0.35199739]
[1752080617588,0.58321933,109410.0,109400.0,0.20309679]
[1752080617758,0.58321933,109410.0,109400.0,0.34281679]
[1752080617961,0.58321933,109410.0,109400.0,0.71141428]
[1752080618568,0.73207926,109410.0,109400.0,0.72055463]
[1752080618812,0.74121885,109410.0,109400.0,0.36109749]
[1752080619158,0.60149885,109410.0,109400.0,0.71141387]
[1752080619485,0.74121885,109410.0,109400.0,0.71141387]
[1752080619724,0.74121885,109410.0,109400.0,0.36109749]
[1752080619927,0.74121885,109410.0,109400.0,0.70227352]
[1752080620685,0.74121885,109410.0,109400.0,0.71141395]
[1752080620911,0.74121885,109410.0,109400.0,0.7205543]
[1752080621115,0.60149885,109410.0,109400.0,0.7205543]
[1752080621329,0.74121885,109410.0,109400.0,0.72055388]
[1752080621510,0.54927978,109410.0,109400.0,0.67055346]
[1752080622062,0.55841954,109410.0,109400.0,0.67055346]
[1752080622240,0.56755938,109410.0,109400.0,0.67055346]
[1752080622422,0.55841954,109410.0,109400.0,0.67055346]
[1752080622788,0.54927978,109410.0,109400.0,0.67055346]
[1752080623319,0.40955978,109410.0,109400.0,0.67055346]
[1752080623527,0.4095597,109410.0,109400.0,0.67055346]
[1752080624232,0.41869938,109410.0,109400.0,0.67055346]
[1752080624403,0.61063795,109410.0,109400.0,0.66141328]
[1752080624748,0.42783914,109410.0,109400.0,0.67055346]
[1752080624902,0.41869938,109410.0,109400.0,0.67055346]
[1752080625314,0.4095597,109410.0,109400.0,0.67055346]
[1752080626325,0.40042019,109410.0,109400.0,0.67055346]
[1752080626529,0.40042019,109410.0,109400.0,0.53252346]
[1752080626530,0.35454085,109410.0,109400.0,0.53252346]
[1752080626709,0.34,109410.0,109400.0,0.70412346]
[1752080626915,0.01974529,109420.0,109400.0,0.70412346]
[1752080626916,0.00046529,109420.0,109410.0,0.21021741]
[1752080627148,0.00046529,109420.0,109410.0,0.71706379]
[1752080627149,0.35500614,109420.0,109410.0,0.71706379]
[1752080627720,0.35500614,109420.0,109410.0,0.36674741]
[1752080627965,0.35600614,109420.0,109410.0,0.71706379]
[1752080628737,0.35700614,109420.0,109410.0,0.71706379]
[1752080629773,0.35700614,109420.0,109410.0,0.70792445]
[1752080629970,0.35700614,109420.0,109410.0,0.71706379]
[1752080630412,0.35700614,109420.0,109410.0,0.70186379]
[1752080630615,0.36614456,109420.0,109410.0,0.70186379]
[1752080630774,0.36912448,109420.0,109410.0,0.70186379]
[1752080631366,0.35998614,109420.0,109410.0,0.70186379]
[1752080631805,0.36912448,109420.0,109410.0,0.70186379]
[1752080632392,0.35998614,109420.0,109410.0,0.70186379]
[1752080632800,0.36912448,109420.0,109410.0,0.70186379]
[1752080633476,0.35998614,109420.0,109410.0,0.70186379]
[1752080633682,0.35700614,109420.0,109410.0,1.08434017]
[1752080633886,0.35700614,109420.0,109410.0,1.10143995]
[1752080634282,0.35700614,109420.0,109410.0,1.10037995]
[1752080634834,0.35700614,109420.0,109410.0,0.38424719]
[1752080635008,0.37528323,109420.0,109410.0,0.73456357]
[1752080635323,0.36614456,109420.0,109410.0,0.73456357]
[1752080635483,0.37528307,109420.0,109410.0,0.73456357]
[1752080636421,0.39356042,109420.0,109410.0,0.71896357]
[1752080636616,0.42330935,109420.0,109410.0,0.57932357]
[1752080636818,0.41417042,109420.0,109410.0,0.57932357]
[1752080636981,0.41417042,109420.0,109410.0,0.71908357]
[1752080637933,0.61215287,109420.0,109410.0,0.35793785]
[1752080638131,0.61215287,109420.0,109410.0,0.72653308]
[1752080638294,0.61215287,109420.0,109410.0,0.71739374]
[1752080638295,0.61215345,109420.0,109410.0,0.71739374]
[1752080638497,0.61215345,109420.0,109410.0,0.71739419]
[1752080639504,0.61215345,109420.0,109410.0,0.71726702]
[1752080639706,0.42023242,109420.0,109410.0,0.72640636]
[1752080639924,0.42937143,109420.0,109410.0,0.72640636]
[1752080640122,0.62129246,109420.0,109410.0,0.72640636]
[1752080640324,0.59695336,109420.0,109410.0,0.57919702]
[1752080640524,0.59695336,109420.0,109410.0,0.71891702]
[1752080640918,0.59695336,109420.0,109410.0,0.71891558]
[1752080641120,0.59695336,109420.0,109410.0,0.72805501]
[1752080641475,0.41417126,109420.0,109410.0,0.73719435]
[1752080641798,0.42331027,109420.0,109410.0,0.73719435]
[1752080642049,0.60609221,109420.0,109410.0,0.38687797]
[1752080642262,0.58781486,109420.0,109410.0,0.70977607]
[1752080642491,0.58781486,109420.0,109410.0,0.71891558]
[1752080642652,0.59695395,109420.0,109410.0,0.72805501]
[1752080643008,0.58781511,109420.0,109410.0,0.57018341]
[1752080643389,0.60321511,109420.0,109410.0,0.579323]
[1752080643553,0.60321511,109420.0,109410.0,0.719003]
[1752080644199,0.60321511,109420.0,109410.0,0.71900326]
[1752080644428,0.60321511,109420.0,109410.0,0.72814277]
[1752080645049,0.60321511,109420.0,109410.0,0.57932335]
[1752080645174,0.60321511,109420.0,109410.0,0.72810294]
[1752080645372,0.60321511,109420.0,109410.0,0.36741543]
[1752080645624,0.67267424,109420.0,109410.0,0.34867753]
[1752080645826,0.59407618,109420.0,109410.0,0.35781729]
[1752080645971,0.59407618,109420.0,109410.0,0.36695688]
[1752080646168,0.59407618,109420.0,109410.0,0.35781729]
[1752080646374,0.59407618,109420.0,109410.0,0.70813649]
[1752080646627,0.59407618,109420.0,109410.0,0.71939617]
[1752080646989,0.59407618,109420.0,109410.0,0.36907979]
[1752080647188,0.59407618,109420.0,109410.0,0.71939617]
[1752080648694,0.58493717,109420.0,109410.0,0.71939617]
[1752080649113,0.58493717,109420.0,109410.0,0.70813649]
[1752080649547,0.58521717,109420.0,109410.0,0.70813649]
[1752080650308,0.57607808,109420.0,109410.0,0.15674187]
[1752080650640,0.57607808,109420.0,109410.0,0.70813666]
[1752080651254,0.57607808,109420.0,109410.0,0.69899682]
[1752080651596,0.57607808,109420.0,109410.0,0.68985689]
[1752080651998,0.57607808,109420.0,109410.0,0.69899682]
[1752080653135,0.57607808,109420.0,109410.0,0.70813666]
[1752080653335,0.57607808,109420.0,109410.0,0.35782028]
[1752080653569,0.71571808,109420.0,109410.0,0.70813666]
[1752080653777,0.72485709,109420.0,109410.0,0.71727625]
[1752080654112,0.73399585,109420.0,109410.0,0.36695987]
[1752080654248,0.73399585,109420.0,109410.0,0.71727625]
[1752080654759,0.73399585,109420.0,109410.0,0.71727642]
[1752080654942,0.72485709,109420.0,109410.0,0.71727642]
[1752080655374,0.72485709,109420.0,109410.0,0.73555552]
[1752080655588,0.58521709,109420.0,109410.0,0.73555552]
[1752080655997,0.58521709,109420.0,109410.0,0.72641601]
[1752080657180,0.58521709,109420.0,109410.0,0.73555552]
[1752080657381,0.34246529,109420.0,109410.0,1.10276131]
[1752080657604,0.34246529,109420.0,109410.0,1.11916131]
[1752080658256,0.36614448,109420.0,109410.0,1.10276131]
[1752080658396,0.35700614,109420.0,109410.0,1.10276131]
[1752080658591,0.37528341,109420.0,109410.0,0.73724493]
[1752080658797,0.37849341,109420.0,109410.0,0.73724493]
[1752080659001,0.48042964,109420.0,109410.0,0.73724493]
[1752080659841,0.48956865,109420.0,109410.0,0.73724493]
[1752080660015,0.67911241,109420.0,109410.0,0.55021689]
[1752080660209,0.67911241,109420.0,109410.0,0.69895682]
[1752080660435,0.66083447,109420.0,109410.0,0.55935682]
[1752080660635,0.66083447,109420.0,109410.0,0.56849666]
[1752080660842,0.57727808,109420.0,109410.0,0.15670187]
[1752080661043,0.92759446,109420.0,109410.0,0.15670187]
[1752080661191,0.40971154,109400.0,109390.0,0.20155304]
[1752080661392,0.40971154,109400.0,109390.0,0.44910521]
[1752080661393,0.59252739,109400.0,109390.0,0.44910521]
[1752080661601,0.59252739,109400.0,109390.0,0.45824672]
[1752080661831,0.59252739,109400.0,109390.0,0.25713335]
[1752080662127,0.59252739,109400.0,109390.0,0.45824852]
[1752080662347,0.59252739,109400.0,109390.0,0.46738987]
[1752080662753,0.59252739,109400.0,109390.0,0.81770625]
[1752080663109,0.59252739,109400.0,109390.0,0.8105649]
[1752080663251,0.59252739,109400.0,109390.0,0.81970633]
[1752080663659,0.59252739,109400.0,109390.0,0.83084768]
[1752080663856,0.59252739,109400.0,109390.0,0.69124768]
[1752080664062,0.59252739,109400.0,109390.0,0.68210633]
[1752080664262,0.59252739,109400.0,109390.0,0.82170633]
[1752080664681,0.59252739,109400.0,109390.0,0.83084768]
[1752080665054,0.59252739,109400.0,109390.0,0.83998894]
[1752080665466,0.59252739,109400.0,109390.0,0.83998852]
[1752080665596,0.59252739,109400.0,109390.0,0.48967214]
[1752080665784,0.59252739,109400.0,109390.0,0.83998852]
[1752080666380,0.41885222,109400.0,109390.0,0.83998802]
[1752080666552,0.37603121,109400.0,109390.0,0.84207802]
[1752080666791,0.3819613,109400.0,109390.0,0.84167802]
[1752080666998,0.3851713,109400.0,109390.0,0.84167802]
[1752080667157,0.3851713,109400.0,109390.0,0.84166865]
[1752080667356,0.35454085,109400.0,109390.0,0.84166865]
[1752080667555,0.35454085,109400.0,109390.0,0.85776865]
[1752080667758,0.36368086,109400.0,109390.0,0.85776865]
[1752080668090,0.35454085,109400.0,109390.0,0.85776865]
[1752080668295,0.35454085,109400.0,109390.0,0.87296865]
[1752080669425,0.35454085,109400.0,109390.0,0.85776865]
[1752080669576,0.35454085,109400.0,109390.0,0.84064805]
[1752080669911,0.38196163,109400.0,109390.0,0.82454805]
[1752080670125,0.40225163,109400.0,109390.0,0.82285805]
[1752080670316,0.61874842,109400.0,109390.0,0.81371704]
[1752080670539,0.95185171,109400.0,109390.0,0.10440338]
[1752080670728,0.73092764,109400.0,109390.0,0.24400338]
[1752080670879,0.75839764,109400.0,109390.0,0.00444]
[1752080671080,1.20015095,109400.0,109390.0,0.00444]
[1752080671285,0.9412715,109400.0,109390.0,0.00444]
[1752080671683,1.29158788,109400.0,109390.0,0.00444]
[1752080671899,1.29158788,109400.0,109390.0,0.00244]
[1752080672259,1.29158788,109400.0,109390.0,0.00344]
[1752080672715,1.06055095,109400.0,109390.0,0.00244]
[1752080672904,1.20015095,109400.0,109390.0,0.00244]
[1752080673118,0.71023457,109400.0,109390.0,0.00044]
[1752080673326,0.75943764,109400.0,109390.0,0.54272995]
[1752080673616,0.75943731,109400.0,109390.0,0.56201222]
[1752080673826,0.75403722,109400.0,109390.0,0.56101264]
[1752080674025,0.60605679,109400.0,109390.0,0.00044]
[1752080674227,0.76123764,109400.0,109390.0,0.00044]
[1752080674374,0.62159764,109400.0,109390.0,0.00044]
[1752080674571,0.76119764,109400.0,109390.0,0.00044]
[1752080674988,0.34,109390.0,109380.0,0.70993928]
[1752080675176,0.34529,109390.0,109380.0,0.71162928]
[1752080675382,0.52812206,109390.0,109380.0,0.71162928]
[1752080675826,0.54640476,109390.0,109380.0,0.71162928]
[1752080676189,0.54640517,109390.0,109380.0,0.69334566]
[1752080676388,0.54640517,109390.0,109380.0,0.69434566]
[1752080676593,0.68604517,109390.0,109380.0,0.69434566]
[1752080677003,0.70254517,109390.0,109380.0,0.69434566]
[1752080677233,0.69340366,109390.0,109380.0,0.69265566]
[1752080677427,0.68426206,109390.0,109380.0,0.67437121]
[1752080677640,0.70056206,109390.0,109380.0,0.67437121]
[1752080677836,0.71510291,109390.0,109380.0,0.1412066]
[1752080678245,0.80653984,109390.0,109380.0,0.0015666]
[1752080678912,0.83401184,109390.0,109380.0,0.0015666]
[1752080679071,0.83401184,109390.0,109380.0,0.0025666]
[1752080679647,0.74257491,109390.0,109380.0,0.0025666]
[1752080680720,0.73929491,109390.0,109380.0,0.0025666]
[1752080680922,0.74227491,109390.0,109380.0,0.0025666]
[1752080685813,0.60263491,109390.0,109380.0,0.0025666]
[1752080686018,0.74227491,109390.0,109380.0,0.0025666]
[1752080686175,0.83371184,109390.0,109380.0,0.0025666]
[1752080686381,0.74227491,109390.0,109380.0,0.0025666]
[1752080688545,0.60263491,109390.0,109380.0,0.0025666]
[1752080688892,0.74227491,109390.0,109380.0,0.0025666]
[1752080690236,0.83371184,109390.0,109380.0,0.0025666]
[1752080691317,0.83371184,109390.0,109380.0,0.18541538]
[1752080691544,0.83371184,109390.0,109380.0,0.55401629]
[1752080691746,0.75339928,109390.0,109380.0,0.57399024]
[1752080692085,0.367472,109390.0,109380.0,0.94904847]
[1752080692287,0.367472,109390.0,109380.0,0.96600847]
[1752080692833,0.34,109390.0,109380.0,0.96600847]
[1752080693000,0.35454085,109390.0,109380.0,0.96600847]
[1752080693389,0.35454085,109390.0,109380.0,1.10564847]
[1752080693864,0.34,109390.0,109380.0,1.10564847]
[1752080694298,0.35454085,109390.0,109380.0,1.10564847]
[1752080698087,0.35454085,109390.0,109380.0,0.40501571]
[1752080698288,0.35454085,109390.0,109380.0,1.10564847]
[1752080698854,0.35454085,109390.0,109380.0,1.1970854]
[1752080700871,0.35454085,109390.0,109380.0,1.28852233]
[1752080701347,0.01454085,109390.0,109380.0,1.28852233]
[1752080702852,0.01454085,109390.0,109380.0,1.28848233]
[1752080704424,0.35454085,109410.0,109400.0,0.21192664]
[1752080704661,0.37281946,109410.0,109400.0,0.70184302]
[1752080704820,0.38195905,109410.0,109400.0,0.70184302]
[1752080705007,0.38694905,109410.0,109400.0,0.70184302]
[1752080705447,0.40284905,109410.0,109400.0,0.70184302]
[1752080705645,0.40584905,109410.0,109400.0,0.70184302]
[1752080706412,0.59064769,109410.0,109400.0,0.55310284]
[1752080706544,0.59064769,109410.0,109400.0,0.69101284]
[1752080706545,0.59978812,109410.0,109400.0,0.69101284]
[1752080706744,0.61558812,109410.0,109400.0,0.70929345]
[1752080707155,0.43278948,109410.0,109400.0,0.71843363]
[1752080707717,0.61558812,109410.0,109400.0,0.34983681]
[1752080707833,0.61558812,109410.0,109400.0,0.70015319]
[1752080708034,0.43278931,109410.0,109400.0,0.70929337]
[1752080709490,0.62472779,109410.0,109400.0,0.70929337]
[1752080709681,0.44192965,109410.0,109400.0,0.35897699]
[1752080709863,0.44192965,109410.0,109400.0,0.70929337]
[1752080710756,0.43278972,109410.0,109400.0,0.70929337]
[1752080710940,0.42364988,109410.0,109400.0,0.70929337]
[1752080711297,0.40537019,109410.0,109400.0,0.70929337]
[1752080711550,0.36868019,109410.0,109400.0,0.71420337]
[1752080711697,0.3809997,109410.0,109400.0,0.71098337]
[1752080712117,0.40735938,109410.0,109400.0,0.71098337]
[1752080712364,0.3952197,109410.0,109400.0,0.71098337]
[1752080712511,0.40435938,109410.0,109400.0,0.71098337]
[1752080712708,0.3952197,109410.0,109400.0,0.71098337]
[1752080713110,0.3962197,109410.0,109400.0,0.71098337]
[1752080713969,0.36668019,109410.0,109400.0,0.71098337]
[1752080714140,0.3758197,109410.0,109400.0,0.71098337]
[1752080714934,0.3789997,109410.0,109400.0,0.71098337]
[1752080715290,0.01754085,109410.0,109400.0,0.71098337]
[1752080715449,0.01754085,109410.0,109400.0,0.72678337]
[1752080715865,0.01754085,109410.0,109400.0,0.74414337]
[1752080716070,0.01554085,109410.0,109400.0,0.74414337]
[1752080716256,0.01654085,109410.0,109400.0,0.74414337]
[1752080716455,0.01554085,109410.0,109400.0,1.18589668]
[1752080716659,0.01454085,109410.0,109400.0,1.28586006]
[1752080716859,0.01454085,109410.0,109400.0,1.28686006]
[1752080717078,0.01454085,109410.0,109400.0,0.93754368]
[1752080717242,0.01454085,109410.0,109400.0,0.93648368]
[1752080717443,0.01454085,109410.0,109400.0,0.93548368]
[1752080717961,0.01454085,109410.0,109400.0,0.93748368]
[1752080718479,0.01454085,109410.0,109400.0,0.93648368]
[1752080718719,0.01454085,109410.0,109400.0,0.93848368]
[1752080721687,0.01454085,109410.0,109400.0,0.95557261]
[1752080722579,0.01454085,109410.0,109400.0,0.93927261]
[1752080724125,0.01454085,109410.0,109400.0,1.39858592]
[1752080725338,0.01454085,109410.0,109400.0,1.39859078]
[1752080729740,0.00046529,109420.0,109410.0,0.21021741]
[1752080730118,0.01500614,109420.0,109410.0,1.19409089]
[1752080730292,0.01500614,109420.0,109410.0,1.25318608]
[1752080730514,0.00046529,109420.0,109410.0,1.25318608]
[1752080731871,0.01454085,109430.0,109420.0,0.22768822]
[1752080732103,0.01454085,109430.0,109420.0,0.82614173]
[1752080732822,0.01454085,109430.0,109420.0,0.84244173]
[1752080732995,0.01454085,109430.0,109420.0,0.93387866]
[1752080733404,0.01554085,109430.0,109420.0,0.93387866]
[1752080733804,0.01554085,109430.0,109420.0,0.91757866]
[1752080734388,0.01554085,109430.0,109420.0,1.03254204]
[1752080734591,0.01554085,109430.0,109420.0,1.03360204]
[1752080735162,0.01454085,109430.0,109420.0,1.03360204]
[1752080735543,0.01454085,109430.0,109420.0,1.03560204]
[1752080735943,0.01454085,109430.0,109420.0,1.03454204]
[1752080736143,0.01454085,109430.0,109420.0,1.01954204]
[1752080736626,0.01454085,109430.0,109420.0,1.02859631]
[1752080737880,0.01454085,109430.0,109420.0,1.04525631]
[1752080738289,0.01454085,109430.0,109420.0,0.69493993]
[1752080738460,0.01454085,109430.0,109420.0,1.04525631]
[1752080739132,0.01554085,109430.0,109420.0,1.04525631]
[1752080739772,0.01454085,109430.0,109420.0,1.04525631]
[1752080740178,0.01454085,109430.0,109420.0,1.04625631]
[1752080741456,0.47366391,109450.0,109440.0,0.2101598]
[1752080741611,0.47366391,109450.0,109440.0,0.71712997]
[1752080741817,0.48280008,109450.0,109440.0,0.71712997]
[1752080742549,0.67466884,109450.0,109440.0,0.55929604]
[1752080742749,0.67566884,109450.0,109440.0,0.70799313]
[1752080742954,0.4838005,109450.0,109440.0,0.72625856]
[1752080743160,0.50207284,109450.0,109440.0,0.72625856]
[1752080744579,0.68480468,109450.0,109440.0,0.72625856]
[1752080744782,0.67566876,109450.0,109440.0,0.57756172]
[1752080744996,0.52579346,109450.0,109440.0,0.37590218]
[1752080745202,0.49393692,109450.0,109440.0,0.72621856]
[1752080745420,0.50307342,109450.0,109440.0,0.72621856]
[1752080745639,0.42061978,109450.0,109440.0,0.72621856]
[1752080746038,0.42061928,109450.0,109440.0,0.72620703]
[1752080746180,0.41148294,109450.0,109440.0,0.72620703]
[1752080746385,0.40234677,109450.0,109440.0,0.78530222]
[1752080746592,0.41148277,109450.0,109440.0,0.78530222]
[1752080747178,0.39321085,109450.0,109440.0,0.78530222]
[1752080747421,0.39316085,109450.0,109440.0,0.78699222]
[1752080747598,0.40229669,109450.0,109440.0,0.43667584]
[1752080747964,0.39316085,109450.0,109440.0,1.07821341]
[1752080748367,0.40229669,109450.0,109440.0,1.07821341]
[1752080748576,0.39316085,109450.0,109440.0,1.07821341]
[1752080748918,0.39316085,109450.0,109440.0,0.72789703]
[1752080749251,0.40229669,109450.0,109440.0,0.72789703]
[1752080749861,0.39316085,109450.0,109440.0,0.72789703]
[1752080750623,0.03234085,109450.0,109440.0,1.16965034]
[1752080750821,0.01654085,109450.0,109440.0,1.29168727]
[1752080751024,0.01654085,109450.0,109440.0,1.27608727]
[1752080751432,0.01554085,109450.0,109440.0,1.27608727]
[1752080751551,0.01454085,109450.0,109440.0,0.54338058]
[1752080751752,0.01454085,109450.0,109440.0,1.26107249]
[1752080752214,0.01454085,109450.0,109440.0,1.26207249]
[1752080753930,0.01454085,109450.0,109440.0,1.27707249]
[1752080755682,0.01454085,109450.0,109440.0,1.26207249]
[1752080756283,0.03686,109470.0,109460.0,0.2101214]
[1752080756513,0.03686,109470.0,109460.0,0.71913693]
[1752080756514,0.07880385,109470.0,109460.0,0.71913693]
[1752080756842,0.07468935,109470.0,109460.0,0.71913693]
[1752080757353,0.07668935,109470.0,109460.0,0.77823212]
[1752080757529,0.07668935,109470.0,109460.0,0.77827288]
[1752080757831,0.09495844,109470.0,109460.0,0.71705769]
[1752080758049,0.10409319,109470.0,109460.0,0.71705769]
[1752080758250,0.09795844,109470.0,109460.0,0.71705769]
[1752080758840,0.10509319,109470.0,109460.0,0.71705769]
[1752080759268,0.28779239,109470.0,109460.0,0.57753803]
[1752080759547,0.08682427,109470.0,109460.0,0.73532845]
[1752080759972,0.08382427,109470.0,109460.0,0.73532845]
[1752080760174,0.0746896,109470.0,109460.0,0.71827495]
[1752080760396,0.06655502,109470.0,109460.0,0.71827495]
[1752080760592,0.07568935,109470.0,109460.0,0.71827495]
[1752080760823,0.06655502,109470.0,109460.0,0.71827495]
[1752080760961,0.07568935,109470.0,109460.0,0.72737832]
[1752080762424,0.08482377,109470.0,109460.0,0.72737832]
[1752080762616,0.06755502,109470.0,109460.0,0.72737832]
[1752080762812,0.08582369,109470.0,109460.0,0.72737832]
[1752080763017,0.10409294,109470.0,109460.0,0.71827495]
[1752080763337,0.27765722,109470.0,109460.0,0.70913978]
[1752080763552,0.28679214,109470.0,109460.0,4.641e-05]
[1752080763770,0.68033637,109470.0,109460.0,4.641e-05]
[1752080763971,1.03065275,109470.0,109460.0,0.13956641]
[1752080764177,0.94970535,109470.0,109460.0,0.13956641]
[1752080764392,1.18066228,109470.0,109460.0,4.641e-05]
[1752080764736,0.8303459,109470.0,109460.0,4.641e-05]
[1752080765859,0.8303459,109470.0,109460.0,0.18276155]
[1752080766299,0.8303459,109470.0,109460.0,4.641e-05]
[1752080766515,0.92178283,109470.0,109460.0,4.641e-05]
[1752080767428,0.8303459,109470.0,109460.0,4.641e-05]
[1752080769182,0.8303459,109470.0,109460.0,0.18276155]
[1752080769356,0.8303459,109470.0,109460.0,4.641e-05]
[1752080769765,0.39842085,109470.0,109460.0,0.56048419]
[1752080769911,0.41668976,109470.0,109460.0,0.56048419]
[1752080770118,0.43495868,109470.0,109460.0,0.56048419]
[1752080770333,0.41668943,109470.0,109460.0,0.56048419]
[1752080770535,0.39842085,109470.0,109460.0,0.65058079]
[1752080770740,0.41668944,109470.0,109460.0,0.65058079]
[1752080772280,0.43495894,109470.0,109460.0,0.56048436]
[1752080772864,0.42582411,109470.0,109460.0,0.56961961]
[1752080773067,0.42582411,109470.0,109460.0,0.57875478]
[1752080773277,0.42582402,109470.0,109460.0,0.57875478]
[1752080773784,0.41668944,109470.0,109460.0,0.57875478]
[1752080773977,0.37995085,109470.0,109460.0,0.58044478]
[1752080774227,0.36130085,109470.0,109460.0,0.58044478]
[1752080775036,0.36447085,109470.0,109460.0,0.58044478]
[1752080777763,0.36130085,109470.0,109460.0,0.58044478]
[1752080778203,0.00676,109470.0,109460.0,1.03819809]
[1752080778400,0.00676,109470.0,109460.0,1.14609502]
[1752080778604,0.00676,109470.0,109460.0,1.2460584]
[1752080779034,0.00576,109470.0,109460.0,1.2460584]
[1752080779169,0.02030085,109470.0,109460.0,1.2460584]
[1752080779995,0.01930085,109470.0,109460.0,1.32805309]
[1752080780218,0.01930085,109470.0,109460.0,0.97773671]
[1752080780448,0.01930085,109470.0,109460.0,1.11615671]
[1752080780612,0.01930085,109470.0,109460.0,1.02076202]
[1752080780834,0.01930085,109470.0,109460.0,1.00476202]
[1752080781190,0.03847085,109470.0,109460.0,0.86328202]
[1752080781362,0.03847085,109470.0,109460.0,1.00676202]
[1752080781681,0.04056085,109470.0,109460.0,1.00676202]
[1752080781823,0.04156085,109470.0,109460.0,0.65644564]
[1752080782028,0.04156085,109470.0,109460.0,0.86728202]
[1752080782244,0.04156085,109470.0,109460.0,1.00676202]
[1752080782649,0.03630085,109470.0,109460.0,1.00676202]
[1752080782850,0.02030085,109470.0,109460.0,1.3899384]
[1752080783176,0.01930085,109470.0,109460.0,1.47193309]
[1752080783399,0.01930085,109470.0,109460.0,1.3929384]
[1752080783928,0.01930085,109470.0,109460.0,1.42093998]
[1752080784994,0.01930085,109470.0,109460.0,1.50293467]
[1752080785156,0.01930085,109470.0,109460.0,1.42093998]
[1752080787936,0.01930085,109470.0,109460.0,1.0706236]
[1752080789749,0.01930085,109470.0,109460.0,1.0530636]
[1752080790091,0.02456085,109470.0,109460.0,1.0377636]
[1752080790299,0.0501951,109470.0,109460.0,0.45653029]
[1752080790499,0.0501951,109470.0,109460.0,0.82519816]
[1752080790500,0.0666951,109470.0,109460.0,0.82519816]
[1752080790843,0.06669518,109470.0,109460.0,0.82519816]
[1752080791030,0.05756085,109470.0,109460.0,0.82519816]
[1752080791222,0.05756085,109470.0,109460.0,0.82119816]
[1752080791378,0.05756085,109470.0,109460.0,0.91263509]
[1752080791581,0.06669502,109470.0,109460.0,0.91463509]
[1752080791990,0.05756085,109470.0,109460.0,0.56431871]
[1752080792212,0.05756085,109470.0,109460.0,0.77215509]
[1752080792412,0.05756085,109470.0,109460.0,0.91263509]
[1752080793974,0.05756085,109470.0,109460.0,0.91432509]
[1752080796024,0.04106085,109470.0,109460.0,0.91432509]
[1752080796260,0.04106085,109470.0,109460.0,0.56400871]
[1752080796720,0.07552944,109470.0,109460.0,0.2948606]
[1752080796948,0.08466394,109470.0,109460.0,0.31313119]
[1752080797196,0.16711583,109470.0,109460.0,0.30399602]
[1752080797448,0.34068011,109470.0,109460.0,0.30399619]
[1752080797671,0.67272757,109470.0,109460.0,0.24404979]
[1752080797898,0.7479523,109470.0,109460.0,0.10300979]
[1752080798124,0.58909405,109470.0,109460.0,0.42700493]
[1752080798347,0.58909405,109470.0,109460.0,0.79559265]
[1752080798584,0.5799593,109470.0,109460.0,0.43614068]
[1752080798807,0.5799593,109470.0,109460.0,0.44527627]
[1752080799079,0.58909413,109470.0,109460.0,0.45441177]
[1752080799278,0.58909413,109470.0,109460.0,0.43614068]
[1752080799437,0.60736363,109470.0,109460.0,0.46354728]
[1752080799640,0.41553026,109470.0,109460.0,0.47268253]
[1752080800119,0.42466451,109470.0,109460.0,0.47268195]
[1752080800316,0.42455451,109470.0,109460.0,0.82299833]
[1752080800720,0.41541976,109470.0,109460.0,0.82299833]
[1752080801150,0.42455451,109470.0,109460.0,0.45441153]
[1752080801402,0.44282426,109470.0,109460.0,0.81386316]
[1752080801614,0.43055934,109470.0,109460.0,0.81386316]
[1752080801825,0.43368934,109470.0,109460.0,0.82299833]
[1752080802201,0.41541976,109470.0,109460.0,0.82299833]
[1752080802408,0.42455459,109470.0,109460.0,0.82299833]
[1752080802569,0.42455451,109470.0,109460.0,0.82299833]
[1752080802770,0.42455459,109470.0,109460.0,0.82299833]
[1752080802982,0.61638796,109470.0,109460.0,0.79559257]
[1752080803244,0.60725363,109470.0,109460.0,0.44559619]
[1752080803443,0.60725363,109470.0,109460.0,0.80504807]
[1752080803647,0.60725363,109470.0,109460.0,0.81418349]
[1752080803853,0.60725363,109470.0,109460.0,0.46386711]
[1752080804029,0.42455518,109470.0,109460.0,0.47300245]
[1752080804228,0.42455518,109470.0,109460.0,0.47300203]
[1752080804386,0.41541976,109470.0,109460.0,0.82331841]
[1752080804596,0.41541976,109470.0,109460.0,0.82331799]
[1752080805859,0.4062851,109470.0,109460.0,0.82331799]
[1752080806063,0.41541952,109470.0,109460.0,0.82331799]
[1752080806277,0.41541943,109470.0,109460.0,0.82331799]
[1752080806483,0.42455401,109470.0,109460.0,0.82331799]
[1752080806894,0.39715085,109470.0,109460.0,0.47300161]
[1752080807095,0.40628518,109470.0,109460.0,0.82331799]
[1752080807305,0.42455443,109470.0,109460.0,0.47300161]
[1752080807878,0.42455443,109470.0,109460.0,0.82331799]
[1752080808274,0.42455411,109470.0,109460.0,0.82331799]
[1752080809484,0.43368886,109470.0,109460.0,0.82331799]
[1752080810277,0.44282369,109470.0,109460.0,0.47300161]